fUST/lending_fUST_20250722
["ID","MTS","AMOUNT","RATE_DAILY","PERIOD"]
[374016283,1753183839881,-1664.25000443,0.00018,2]
[374016296,1753183839993,-14888.69708495,0.00018,2]
[374016298,1753183840002,-5931.99897974,0.00018,2]
[374016300,1753183840011,-500.0,0.00018053,2]
[374016302,1753183840021,-500.0,0.00018053,2]
[374016304,1753183840030,-500.0,0.00018067,2]
[374016306,1753183840043,-790.33,0.00018125,2]
[374016308,1753183840053,-460.0,0.00018126,2]
[374016310,1753183840062,-460.0,0.00018126,2]
[374016312,1753183840072,-460.0,0.00018126,2]
[374016314,1753183840082,-778.03,0.00018126,2]
[374016316,1753183840091,-1031.59,0.00018126,2]
[374016318,1753183840102,-460.0,0.00018126,2]
[374016320,1753183840113,-1010.39,0.00018126,2]
[374016322,1753183840123,-460.0,0.00018126,2]
[374016324,1753183840133,-213.81150585,0.00018126,2]
[374016326,1753183840142,-460.0,0.00018126,2]
[374016328,1753183840152,-460.0,0.00018126,2]
[374016329,1753183840161,-409.49541902,0.00018126,2]
[374016330,1753183840171,-460.0,0.00018126,2]
[374016331,1753183840183,-460.0,0.00018126,2]
[374016332,1753183840192,-460.0,0.00018126,2]
[374016333,1753183840201,-460.0,0.00018126,2]
[374016334,1753183840210,-460.0,0.00018126,2]
[374016335,1753183840220,-460.0,0.00018126,2]
[374016337,1753183840230,-460.0,0.00018126,2]
[374016339,1753183840239,-460.0,0.00018126,2]
[374016341,1753183840249,-460.0,0.00018126,2]
[374016343,1753183840259,-575.53,0.00018126,2]
[374016345,1753183840268,-460.0,0.00018127,2]
[374016347,1753183840278,-612.77,0.00018127,2]
[374016350,1753183840288,-460.0,0.00018127,2]
[374016352,1753183840298,-1244.04,0.00018127,2]
[374016354,1753183840308,-460.0,0.00018127,2]
[374016356,1753183840319,-460.0,0.00018127,2]
[374016358,1753183840328,-460.0,0.00018127,2]
[374016360,1753183840338,-460.0,0.00018128,2]
[374016362,1753183840350,-1119.94,0.00018128,2]
[374016364,1753183840360,-460.0,0.00018128,2]
[374016366,1753183840369,-604.73,0.00018128,2]
[374016368,1753183840379,-484.91,0.00018254,3]
[374016370,1753183840389,-161.63,0.00018264,3]
[374016372,1753183840398,-175.0,0.00018274,3]
[374016374,1753183840408,-323.25,0.0001839,3]
[374016376,1753183840417,-790.33,0.00018399,2]
[374016378,1753183840427,-460.0,0.000184,2]
[374016380,1753183840436,-460.0,0.000184,2]
[374016382,1753183840446,-283.32249376,0.000184,2]
[374016384,1753183840456,-778.03,0.000184,2]
[374016386,1753183840465,-1031.59,0.000184,2]
[374016388,1753183840475,-460.0,0.000184,2]
[374016390,1753183840484,-1010.39,0.000184,2]
[374016393,1753183840494,-460.0,0.000184,2]
[374016395,1753183840505,-460.0,0.000184,2]
[374016397,1753183840514,-460.0,0.000184,2]
[374016399,1753183840523,-460.0,0.000184,2]
[374016401,1753183840532,-460.0,0.000184,2]
[374016403,1753183840541,-460.0,0.000184,2]
[374016405,1753183840551,-460.0,0.000184,2]
[374016407,1753183840560,-460.0,0.000184,2]
[374016409,1753183840569,-452.04904119,0.000184,2]
[374016411,1753183840579,-460.0,0.000184,2]
[374016413,1753183840588,-460.0,0.000184,2]
[374016415,1753183840598,-460.0,0.000184,2]
[374016417,1753183840607,-575.53,0.000184,2]
[374016419,1753183840617,-460.0,0.00018401,2]
[374016421,1753183840626,-612.77,0.00018401,2]
[374016423,1753183840636,-460.0,0.00018401,2]
[374016425,1753183840645,-1244.04,0.00018401,2]
[374016427,1753183840654,-460.0,0.00018401,2]
[374016429,1753183840664,-460.0,0.00018401,2]
[374016431,1753183840673,-460.0,0.00018401,2]
[374016433,1753183840682,-460.0,0.00018402,2]
[374016435,1753183840691,-1119.94,0.00018402,2]
[374016437,1753183840701,-460.0,0.00018402,2]
[374016439,1753183840710,-604.73,0.00018402,2]
[374016441,1753183840719,-44742.72566233,0.000185,2]
[374016443,1753183840728,-512.64289781,0.00018501,2]
[374016445,1753183840738,-548.56607355,0.00018601,2]
[374016447,1753183840747,-1000.0,0.00018601,2]
[374016449,1753183840757,-790.33,0.00018673,2]
[374016451,1753183840766,-460.0,0.00018674,2]
[374016453,1753183840776,-460.0,0.00018674,2]
[374016455,1753183840785,-778.03,0.00018674,2]
[374016457,1753183840795,-1031.59,0.00018674,2]
[374016459,1753183840804,-460.0,0.00018674,2]
[374016461,1753183840814,-1010.39,0.00018674,2]
[374016463,1753183840823,-460.0,0.00018674,2]
[374016465,1753183840833,-460.0,0.00018674,2]
[374016467,1753183840842,-460.0,0.00018674,2]
[374016469,1753183840853,-460.0,0.00018674,2]
[374016471,1753183840863,-460.0,0.00018674,2]
[374016473,1753183840873,-460.0,0.00018674,2]
[374016475,1753183840882,-460.0,0.00018674,2]
[374016477,1753183840891,-460.0,0.00018674,2]
[374016479,1753183840901,-460.0,0.00018674,2]
[374016481,1753183840911,-238.69,0.00018674,2]
[374016483,1753183840921,-460.0,0.00018674,2]
[374016485,1753183840930,-575.53,0.00018674,2]
[374016487,1753183840940,-460.0,0.00018675,2]
[374016489,1753183840949,-612.77,0.00018675,2]
[374016491,1753183840958,-460.0,0.00018675,2]
[374016493,1753183840967,-1244.04,0.00018675,2]
[374016495,1753183840977,-460.0,0.00018675,2]
[374016497,1753183840986,-460.0,0.00018675,2]
[374016499,1753183840995,-460.0,0.00018675,2]
[374016501,1753183841005,-460.0,0.00018676,2]
[374016503,1753183841015,-1119.94,0.00018676,2]
[374016505,1753183841025,-460.0,0.00018676,2]
[374016508,1753183841034,-604.73,0.00018676,2]
[374016510,1753183841044,-1657.32327751,0.000189,2]
[374016512,1753183841053,-4178.39286617,0.000189,2]
[374016514,1753183841063,-790.33,0.00018947,2]
[374016516,1753183841072,-460.0,0.00018948,2]
[374016518,1753183841081,-460.0,0.00018948,2]
[374016520,1753183841090,-778.03,0.00018948,2]
[374016522,1753183841101,-1031.59,0.00018948,2]
[374016524,1753183841110,-460.0,0.00018948,2]
[374016526,1753183841119,-1010.39,0.00018948,2]
[374016540,1753183841248,-460.0,0.00018948,2]
[374016542,1753183841259,-460.0,0.00018948,2]
[374016544,1753183841270,-460.0,0.00018948,2]
[374016546,1753183841279,-460.0,0.00018948,2]
[374016548,1753183841288,-460.0,0.00018948,2]
[374016550,1753183841298,-460.0,0.00018948,2]
[374016552,1753183841307,-460.0,0.00018948,2]
[374016554,1753183841316,-460.0,0.00018948,2]
[374016556,1753183841326,-460.0,0.00018948,2]
[374016558,1753183841335,-460.0,0.00018948,2]
[374016560,1753183841345,-460.0,0.00018949,2]
[374016562,1753183841355,-612.77,0.00018949,2]
[374016565,1753183841364,-460.0,0.00018949,2]
[374016567,1753183841373,-1244.04,0.00018949,2]
[374016569,1753183841382,-460.0,0.00018949,2]
[374016571,1753183841392,-460.0,0.00018949,2]
[374016573,1753183841401,-460.0,0.00018949,2]
[374016575,1753183841410,-460.0,0.0001895,2]
[374016577,1753183841420,-1119.94,0.0001895,2]
[374016579,1753183841429,-460.0,0.0001895,2]
[374016581,1753183841438,-604.73,0.0001895,2]
[374016583,1753183841447,-1330.93779917,0.00019,5]
[374016585,1753183841457,-18000.0,0.00019,2]
[374016587,1753183841466,-160.0,0.00019082,2]
[374016589,1753183841475,-160.0,0.00019082,2]
[374016591,1753183841484,-160.0,0.00019082,2]
[374016593,1753183841493,-160.0,0.00019082,2]
[374016595,1753183841503,-231.06963584,0.00019082,2]
[374016597,1753183841512,-12619.94447631,0.00019082,2]
[374016599,1753183841522,-214.6393183,0.00019082,2]
[374016601,1753183841531,-160.0,0.00019082,2]
[374016603,1753183841541,-160.0,0.00019082,2]
[374016605,1753183841550,-839.90542673,0.00019082,2]
[374016607,1753183841559,-215.80012421,0.00019082,2]
[374016609,1753183841568,-476.60259688,0.00019082,2]
[374016611,1753183841577,-160.0,0.00019082,2]
[374016613,1753183841587,-160.0,0.00019084,2]
[374016615,1753183841597,-160.0,0.00019084,2]
[374016617,1753183841606,-4178.39286613,0.00019141,2]
[374016619,1753183841615,-666.0,0.00019178,2]
[374016621,1753183841625,-186.606933,0.00019178,2]
[374016623,1753183841634,-1271.84472331,0.00019178,2]
[374016625,1753183841645,-790.33,0.00019221,2]
[374016627,1753183841655,-247.72,0.00019222,2]
[374016629,1753183841664,-460.0,0.00019222,2]
[374016631,1753183841674,-778.03,0.00019222,2]
[374016633,1753183841683,-1031.59,0.00019222,2]
[374016635,1753183841692,-460.0,0.00019222,2]
[374016637,1753183841701,-1010.39,0.00019222,2]
[374016639,1753183841711,-460.0,0.00019222,2]
[374016641,1753183841720,-460.0,0.00019222,2]
[374016644,1753183841730,-460.0,0.00019222,2]
[374016645,1753183841739,-460.0,0.00019222,2]
[374016648,1753183841749,-460.0,0.00019222,2]
[374016650,1753183841758,-398.33752029,0.00019222,2]
[374016652,1753183841767,-460.0,0.00019222,2]
[374016654,1753183841777,-460.0,0.00019222,2]
[374016656,1753183841785,-460.0,0.00019222,2]
[374016658,1753183841796,-573.9,0.00019223,2]
[374016660,1753183841805,-612.77,0.00019223,2]
[374016662,1753183841814,-460.0,0.00019223,2]
[374016664,1753183841823,-1244.04,0.00019223,2]
[374016666,1753183841832,-460.0,0.00019223,2]
[374016668,1753183841841,-460.0,0.00019223,2]
[374016670,1753183841851,-460.0,0.00019223,2]
[374016672,1753183841861,-460.0,0.00019224,2]
[374016674,1753183841870,-1119.94,0.00019224,2]
[374016676,1753183841879,-460.0,0.00019224,2]
[374016678,1753183841889,-604.73,0.00019224,2]
[374016680,1753183841899,-100000.0,0.00019329,2]
[374016682,1753183841908,-4178.39286613,0.00019383,2]
[374016684,1753183841917,-790.33,0.00019495,2]
[374016686,1753183841927,-282.63378705,0.00019496,2]
[374016688,1753183841936,-778.03,0.00019496,2]
[374016690,1753183841945,-1031.59,0.00019496,2]
[374016692,1753183841955,-411.70661808,0.00019496,2]
[374016694,1753183841964,-1010.39,0.00019496,2]
[374016696,1753183841973,-460.0,0.00019496,2]
[374016698,1753183841983,-460.0,0.00019496,2]
[374016700,1753183841992,-460.0,0.00019496,2]
[374016702,1753183842001,-460.0,0.00019496,2]
[374016704,1753183842011,-460.0,0.00019496,2]
[374016706,1753183842020,-460.0,0.00019496,2]
[374016708,1753183842029,-460.0,0.00019496,2]
[374016710,1753183842039,-460.0,0.00019496,2]
[374016712,1753183842049,-612.77,0.00019497,2]
[374016714,1753183842058,-460.0,0.00019497,2]
[374016716,1753183842067,-1244.04,0.00019497,2]
[374016718,1753183842077,-460.0,0.00019497,2]
[374016720,1753183842086,-460.0,0.00019497,2]
[374016722,1753183842096,-460.0,0.00019497,2]
[374016724,1753183842106,-460.0,0.00019498,2]
[374016726,1753183842115,-1119.94,0.00019498,2]
[374016728,1753183842125,-460.0,0.00019498,2]
[374016730,1753183842134,-604.73,0.00019498,2]
[374016732,1753183842144,-512.6428978,0.00019601,2]
[374016734,1753183842153,-4178.39286613,0.00019624,2]
[374016736,1753183842162,-323.26,0.00019634,3]
[374016738,1753183842172,-3343.58847136,0.0001969,2]
[374016740,1753183842185,-646.5,0.0001976,3]
[374016742,1753183842194,-790.33,0.00019769,2]
[374016744,1753183842204,-778.03,0.0001977,2]
[374016746,1753183842213,-1031.59,0.0001977,2]
[374016749,1753183842223,-1010.39,0.0001977,2]
[374016751,1753183842232,-460.0,0.0001977,2]
[374016752,1753183842241,-460.0,0.0001977,2]
[374016755,1753183842252,-460.0,0.0001977,2]
[374016757,1753183842262,-460.0,0.0001977,2]
[374016759,1753183842271,-460.0,0.0001977,2]
[374016761,1753183842281,-200.37308095,0.0001977,2]
[374016763,1753183842290,-460.0,0.0001977,2]
[374016765,1753183842299,-548.81046487,0.0001977,2]
[374016767,1753183842308,-612.77,0.00019771,2]
[374016769,1753183842317,-460.0,0.00019771,2]
[374016771,1753183842326,-1244.04,0.00019771,2]
[374016773,1753183842335,-460.0,0.00019771,2]
[374016775,1753183842345,-460.0,0.00019771,2]
[374016777,1753183842354,-460.0,0.00019771,2]
[374016779,1753183842363,-460.0,0.00019772,2]
[374016781,1753183842373,-1119.94,0.00019772,2]
[374016783,1753183842382,-460.0,0.00019772,2]
[374016785,1753183842391,-500.0,0.00019787,2]
[374016787,1753183842400,-4178.39286613,0.00019866,2]
[374016789,1753183842409,-35850.79696441,0.0002,2]
[374016791,1753183842418,-72599.65487824,0.0002,2]
[374016793,1753183842427,-160.0,0.00020025,2]
[374016795,1753183842437,-790.33,0.00020043,2]
[374016797,1753183842446,-778.03,0.00020044,2]
[374016799,1753183842456,-1031.59,0.00020044,2]
[374016801,1753183842465,-1010.39,0.00020044,2]
[374016803,1753183842474,-460.0,0.00020044,2]
[374016805,1753183842484,-460.0,0.00020044,2]
[374016807,1753183842493,-460.0,0.00020044,2]
[374016809,1753183842503,-262.96097578,0.00020044,2]
[374016811,1753183842512,-460.0,0.00020044,2]
[374016813,1753183842521,-460.0,0.00020044,2]
[374016816,1753183842531,-612.77,0.00020045,2]
[374016818,1753183842540,-460.0,0.00020045,2]
[374016820,1753183842549,-1244.04,0.00020045,2]
[374016822,1753183842559,-460.0,0.00020045,2]
[374016824,1753183842568,-460.0,0.00020045,2]
[374016827,1753183842577,-460.0,0.00020045,2]
[374016829,1753183842586,-460.0,0.00020046,2]
[374016831,1753183842596,-1119.94,0.00020046,2]
[374016833,1753183842605,-460.0,0.00020046,2]
[374016835,1753183842614,-4178.39286613,0.00020107,2]
[374016837,1753183842623,-2213.08525864,0.00020218,2]
[374016839,1753183842632,-790.33,0.00020317,2]
[374016841,1753183842642,-778.03,0.00020318,2]
[374016843,1753183842651,-1031.59,0.00020318,2]
[374016845,1753183842662,-1010.39,0.00020318,2]
[374016847,1753183842672,-331.07786932,0.00020318,2]
[374016849,1753183842682,-460.0,0.00020318,2]
[374016851,1753183842691,-303.66,0.00020318,2]
[374016853,1753183842700,-460.0,0.00020318,2]
[374016855,1753183842709,-299.45,0.00020318,2]
[374016857,1753183842718,-612.77,0.00020319,2]
[374016859,1753183842727,-460.0,0.00020319,2]
[374016861,1753183842736,-1244.04,0.00020319,2]
[374016863,1753183842746,-196.53,0.00020319,2]
[374016865,1753183842755,-460.0,0.00020319,2]
[374016867,1753183842764,-460.0,0.0002032,2]
[374016869,1753183842774,-1119.94,0.0002032,2]
[374016871,1753183842784,-460.0,0.0002032,2]
[374016873,1753183842793,-4178.39286613,0.00020348,3]
[374016875,1753183842803,-570.9949222,0.000204,2]
[374016877,1753183842812,-260.0,0.00020573,2]
[374016879,1753183842822,-4178.39286613,0.0002059,3]
[374016881,1753183842831,-790.33,0.00020591,2]
[374016883,1753183842840,-778.03,0.00020592,2]
[374016885,1753183842849,-1031.59,0.00020592,2]
[374016887,1753183842858,-1010.39,0.00020592,2]
[374016889,1753183842868,-460.0,0.00020592,2]
[374016891,1753183842878,-460.0,0.00020592,2]
[374016893,1753183842887,-612.77,0.00020593,2]
[374016895,1753183842897,-460.0,0.00020593,2]
[374016897,1753183842906,-1244.04,0.00020593,2]
[374016899,1753183842915,-460.0,0.00020593,2]
[374016901,1753183842924,-460.0,0.00020594,2]
[374016903,1753183842933,-1119.94,0.00020594,2]
[374016905,1753183842943,-460.0,0.00020594,2]
[374016907,1753183842952,-500.0,0.0002066,2]
[374016909,1753183842961,-437.60077437,0.0002066,2]
[374016911,1753183842970,-500.0,0.0002066,2]
[374016913,1753183842980,-500.0,0.0002066,2]
[374016915,1753183842989,-500.0,0.0002066,2]
[374016917,1753183842998,-548.34048182,0.0002066,2]
[374016919,1753183843008,-500.0,0.0002066,2]
[374016921,1753183843017,-500.0,0.0002066,2]
[374016923,1753183843026,-500.0,0.0002066,2]
[374016925,1753183843035,-500.38964033,0.0002066,2]
[374016927,1753183843044,-500.3480752,0.0002066,2]
[374016929,1753183843054,-500.0,0.0002066,2]
[374016931,1753183843063,-500.0,0.0002066,2]
[374016933,1753183843072,-500.0,0.0002066,2]
[374016935,1753183843082,-500.0,0.0002066,2]
[374016937,1753183843091,-500.0,0.0002066,2]
[374016939,1753183843101,-500.0,0.0002066,2]
[374016941,1753183843110,-500.0,0.0002066,2]
[374016943,1753183843119,-500.17276481,0.0002066,2]
[374016945,1753183843129,-512.6428978,0.00020701,2]
[374016947,1753183843138,-837.473,0.00020735,2]
[374016949,1753183843148,-178.80003706,0.00020735,2]
[374016951,1753183843157,-5000.0,0.00020818,2]
[374016953,1753183843166,-500.0,0.00020829,2]
[374016955,1753183843177,-4178.39286613,0.00020831,4]
[374016957,1753183843188,-790.33,0.00020865,2]
[374016959,1753183843197,-778.03,0.00020866,2]
[374016961,1753183843206,-1031.59,0.00020866,2]
[374016963,1753183843215,-1010.39,0.00020866,2]
[374016965,1753183843225,-460.0,0.00020866,2]
[374016967,1753183843235,-460.0,0.00020866,2]
[374016970,1753183843245,-612.77,0.00020867,2]
[374016971,1753183843254,-460.0,0.00020867,2]
[374016974,1753183843264,-1244.04,0.00020867,2]
[374016976,1753183843274,-460.0,0.00020867,2]
[374016977,1753183843283,-460.0,0.00020868,2]
[374016980,1753183843292,-1119.94,0.00020868,2]
[374016982,1753183843302,-460.0,0.00020868,2]
[374016984,1753183843311,-250.08867036,0.000209,2]
[374016986,1753183843321,-59133.5156306,0.00021,2]
[374016988,1753183843330,-542.83386234,0.00021,4]
[374016990,1753183843340,-4178.39286613,0.00021072,4]
[374016992,1753183843350,-500.0,0.0002108,2]
[374016994,1753183843359,-160.06534133,0.0002108,2]
[374016996,1753183843368,-500.0,0.0002108,2]
[374016998,1753183843377,-374.63540786,0.0002108,2]
[374017000,1753183843386,-500.0,0.0002108,2]
[374017002,1753183843395,-360.0,0.00021121,2]
[374017004,1753183843404,-214.6393183,0.00021131,3]
[374017006,1753183843413,-347.83318823,0.00021133,2]
[374017008,1753183843422,-500.0,0.00021133,2]
[374017010,1753183843431,-152.23381412,0.00021133,2]
[374017012,1753183843442,-790.33,0.00021139,2]
[374017014,1753183843451,-778.03,0.0002114,2]
[374017016,1753183843460,-1031.59,0.0002114,2]
[374017017,1753183843471,-1010.39,0.0002114,2]
[374017020,1753183843480,-460.0,0.0002114,2]
[374017021,1753183843490,-460.0,0.0002114,2]
[374017024,1753183843499,-612.77,0.00021141,2]
[374017026,1753183843508,-460.0,0.00021141,2]
[374017028,1753183843518,-1244.04,0.00021141,2]
[374017030,1753183843527,-395.82,0.00021141,2]
[374017032,1753183843536,-460.0,0.00021142,2]
[374017034,1753183843546,-1119.94,0.00021142,2]
[374017036,1753183843555,-460.0,0.00021142,2]
[374017037,1753183843566,-1000.0,0.00021208,2]
[374017039,1753183843581,-158.2508833,0.00021308,2]
[374017042,1753183843591,-500.40940972,0.00021308,2]
[374017043,1753183843600,-500.0,0.00021308,2]
[374017046,1753183843610,-4178.39286613,0.00021314,5]
[374017048,1753183843620,-790.33,0.00021413,2]
[374017050,1753183843629,-778.03,0.00021414,2]
[374017052,1753183843639,-1031.59,0.00021414,2]
[374017054,1753183843648,-1010.39,0.00021414,2]
[374017056,1753183843657,-460.0,0.00021414,2]
[374017058,1753183843666,-460.0,0.00021414,2]
[374017060,1753183843675,-612.77,0.00021415,2]
[374017061,1753183843684,-460.0,0.00021415,2]
[374017064,1753183843693,-1244.04,0.00021415,2]
[374017066,1753183843703,-460.0,0.00021416,2]
[374017068,1753183843712,-1119.94,0.00021416,2]
[374017070,1753183843721,-460.0,0.00021416,2]
[374017072,1753183843730,-4178.39286613,0.00021555,5]
[374017073,1753183843740,-500.69980759,0.00021567,2]
[374017076,1753183843750,-158.25297307,0.00021567,2]
[374017078,1753183843759,-158.64689627,0.00021567,2]
[374017080,1753183843768,-158.2507302,0.00021567,2]
[374017082,1753183843778,-261.38951761,0.00021569,2]
[374017084,1753183843787,-292.58580708,0.000216,2]
[374017086,1753183843796,-500.0,0.00021628,2]
[374017099,1753183843905,-500.0,0.00021628,2]
[374017101,1753183843915,-1003.69047879,0.00021628,2]
[374017102,1753183843925,-460.0,0.00021669,2]
[374017104,1753183843936,-500.0,0.00021681,2]
[374017106,1753183843945,-500.0,0.00021682,2]
[374017108,1753183843955,-500.50351289,0.00021682,2]
[374017110,1753183843964,-500.0,0.00021682,2]
[374017112,1753183843973,-500.0,0.00021682,2]
[374017114,1753183843982,-500.0,0.00021682,2]
[374017116,1753183843992,-500.0,0.00021682,2]
[374017118,1753183844001,-500.0,0.00021682,2]
[374017120,1753183844010,-790.33,0.00021687,2]
[374017122,1753183844020,-778.03,0.00021688,2]
[374017124,1753183844029,-1031.59,0.00021688,2]
[374017126,1753183844039,-1010.39,0.00021688,2]
[374017128,1753183844056,-460.0,0.00021688,2]
[374017130,1753183844072,-460.0,0.00021688,2]
[374017132,1753183844081,-612.77,0.00021689,2]
[374017134,1753183844091,-460.0,0.00021689,2]
[374017136,1753183844100,-1244.04,0.00021689,2]
[374017138,1753183844109,-460.0,0.0002169,2]
[374017140,1753183844118,-1119.94,0.0002169,2]
[374017142,1753183844128,-201.97,0.0002169,2]
[374017144,1753183844137,-10526.46560872,0.00021739,2]
[374017146,1753183844147,-1000.0,0.00021756,2]
[374017148,1753183844156,-4178.39286613,0.00021797,6]
[374017150,1753183844165,-500.0,0.00021799,2]
[374017152,1753183844175,-308.82850684,0.00021799,2]
[374017154,1753183844188,-500.0,0.00021799,2]
[374017156,1753183844197,-500.0,0.00021799,2]
[374017158,1753183844207,-500.0,0.000218,2]
[374017160,1753183844217,-500.0,0.000218,2]
[374017162,1753183844227,-500.0,0.000218,2]
[374017164,1753183844236,-500.0,0.000218,2]
[374017166,1753183844245,-500.0,0.000218,2]
[374017168,1753183844256,-512.6428978,0.000218,2]
[374017170,1753183844265,-500.0,0.00021817,2]
[374017172,1753183844274,-500.0,0.00021817,2]
[374017174,1753183844283,-500.0,0.00021817,2]
[374017176,1753183844293,-500.0,0.00021817,2]
[374017178,1753183844302,-550.05247177,0.00021817,2]
[374017179,1753183844312,-500.0,0.00021817,2]
[374017181,1753183844321,-500.0,0.00021817,2]
[374017183,1753183844330,-501.40390994,0.00021856,2]
[374017185,1753183844339,-500.0,0.0002187,2]
[374017187,1753183844349,-17093.88750281,0.00021916,2]
[374017189,1753183844358,-790.33,0.00021961,2]
[374017191,1753183844368,-778.03,0.00021962,2]
[374017193,1753183844378,-1031.59,0.00021962,2]
[374017195,1753183844387,-1010.39,0.00021962,2]
[374017197,1753183844396,-460.0,0.00021962,2]
[374017199,1753183844405,-460.0,0.00021962,2]
[374017201,1753183844415,-612.77,0.00021963,2]
[374017203,1753183844424,-276.15,0.00021963,2]
[374017205,1753183844434,-1244.04,0.00021963,2]
[374017207,1753183844443,-460.0,0.00021964,2]
[374017209,1753183844452,-1119.94,0.00021964,2]
[374017211,1753183844461,-199.0,0.00022,2]
[374017213,1753183844471,-1126.74,0.00022,7]
[374017215,1753183844479,-2394.18,0.00022,7]
[374017217,1753183844490,-167.0,0.00022,2]
[374017219,1753183844499,-28435.21,0.00022,2]
[374017221,1753183844511,-4178.39286613,0.00022038,6]
[374017223,1753183844520,-560.0,0.00022217,2]
[374017225,1753183844529,-790.33,0.00022235,2]
[374017227,1753183844538,-778.03,0.00022236,2]
[374017229,1753183844548,-1031.59,0.00022236,2]
[374017231,1753183844558,-1010.39,0.00022236,2]
[374017233,1753183844567,-460.0,0.00022236,2]
[374017234,1753183844577,-460.0,0.00022236,2]
[374017236,1753183844586,-1244.04,0.00022236,2]
[374017238,1753183844596,-612.77,0.00022237,2]
[374017240,1753183844605,-285.66,0.00022238,2]
[374017242,1753183844615,-1119.94,0.00022238,2]
[374017244,1753183844624,-3916.0350942,0.00022279,6]
[374017247,1753183844641,-262.35777193,0.00022279,6]
[374017249,1753183844650,-500.0,0.00022348,2]
[374017251,1753183844660,-1000.0,0.00022348,2]
[374017253,1753183844669,-503.68372735,0.00022348,2]
[374017255,1753183844678,-500.98396891,0.00022348,2]
[374017257,1753183844688,-500.0,0.00022365,2]
[374017259,1753183844697,-1000.0,0.00022365,2]
[374017261,1753183844706,-500.0,0.00022365,2]
[374017263,1753183844716,-1000.0,0.00022365,2]
[374017265,1753183844725,-1026.95760584,0.000224,7]
[374017268,1753183844746,-575.53,0.00018948,2]
[374017270,1753183844755,-2031.8417088,0.000224,7]
[374017272,1753183844766,-455.18249544,0.000224,7]
[374017274,1753183844777,-2998.44269599,0.000224,7]
[374017288,1753183844903,-460.0,0.00017029,2]
[374017290,1753183844912,-410.6123134,0.00019222,2]
[374017292,1753183844923,-164.9176866,0.00019222,2]
[374017294,1753183844933,-604.73,0.00019772,2]
[374017296,1753183844943,-604.73,0.00020046,2]
[374017298,1753183844952,-460.0,0.00020319,2]
[374017300,1753183844961,-604.73,0.0002032,2]
[374017302,1753183844971,-460.0,0.00020593,2]
[374017304,1753183844980,-1955.67549393,0.000224,7]
[374017306,1753183844989,-476.60259688,0.000224,7]
[374017308,1753183844999,-4870.72000322,0.000224,7]
[374017310,1753183845010,-4059.1691956,0.000224,7]
[374017313,1753183845030,-460.0,0.00017303,2]
[374017315,1753183845040,-1938.8,0.000224,7]
[374017317,1753183845051,-1751.25527749,0.000224,7]
[374017319,1753183845060,-214.6393183,0.000224,7]
[374017321,1753183845070,-2633.37,0.00022465,2]
[374017323,1753183845079,-1430.51540357,0.0002249,7]
[374017334,1753183845258,-460.0,0.00017577,2]
[374017337,1753183845271,-68.90102382,0.00019496,2]
[374017538,1753183847485,-506.62897618,0.00019496,2]